Cogmind - Beta 16.1 @@@ ROGUE MODE // 2026.02.24 @ 20:39:21 Player: Berinjela Result: Destroyed by Y-54 Guardian with Flak Gun Performance ------------- Evolutions (3) 1500 Regions Visited (7) 1400 Robots Destroyed (92) 460 Value Destroyed (4170) 4170 Prototype IDs (4) 80 Alien Tech Used (0) 0 Bonus (1959) 1959 TOTAL SCORE: 9569 Bonus ------- High Alert Combat Kills 489 Follower Combat Kills 70 Entered Garrisons 400 Used RIF Installer 1000 Cogmind --------- Core Integrity 0/700 Matter 295/300 Energy 86/100 System Corruption 26% Temperature Cool (21) Movement Core (50) Location -7/Garrison Parts ------- > --- POWER (2) -------- (None) > --- PROPULSION (2) --- (None) > --- UTILITY (5) ------ (None) > --- WEAPON (4) ------- (None) > --- INVENTORY (5) ---- Improved Treads Improved Cooling System System Shield Relay Coupler [Swarmer] (34) Improved Datajack Peak State ------------ > --- POWER ------------ Light Deuterium Engine Light Nuclear Core > --- PROPULSION ------- Armored Huge Wheel > --- UTILITY ---------- Large Storage Unit Visual Processing Unit Signal Interpreter Hacking Suite Relay Coupler [NC] > --- WEAPON ----------- Gatling Laser Gatling Laser Heavy Ion Cannon Heavy Assault Rifle > --- INVENTORY -------- Improved Treads Armored Treads Medium Treads Improved Cooling System Large Storage Unit Seismic Detector Melee Analysis Suite Light Armor Plating Hacking Suite System Shield Relay Coupler [Cutter] Mini Grenade Launcher Improved Datajack Improved Datajack Power Maul [Rating: 40] Favorites ----------- Power Heavy Ion Engine Engine Heavy Ion Engine Power Core Light Nuclear Core Propulsion Light Treads Treads Light Treads Leg Aluminum Leg Wheel Wheel Hover Unit Hover Unit Utility Signal Interpreter Device Cooling System Storage Large Storage Unit Processor Signal Interpreter Hackware Hacking Suite Protection Hardened Medium Armor Plating Weapon Heavy Assault Rifle Energy Gun Gatling Laser Energy Cannon Heavy Ion Cannon Ballistic Gun Heavy Assault Rifle Launcher Mini Grenade Launcher Special Weapon Mining Laser Impact Weapon Power Maul Slashing Weapon Katana Special Melee Weapon Improved Datajack Build | -11 -10 -9 -9 -9 -8 -7 -7 ------- Run | Yrd Mat Mat Sto Gar Mat Fac Gar Slots Evolved 6 | . . 2 . . 2 2 . Power 1 | . . . . . 1 . . Propulsion . | . . . . . . . . Utility 3 | . . 2 . . 1 . . Weapon 2 | . . . . . . 2 . Parts Attached 92 | 8 9 13 4 18 24 7 9 Power 15 | 1 4 2 1 . 5 2 . Engine 10 | 1 4 1 1 . 2 1 . Core 5 | . . 1 . . 3 1 . Reactor . | . . . . . . . . Propulsion 20 | 2 1 4 . 7 2 3 1 Treads 14 | . . 3 . 7 2 1 1 Leg 2 | . 1 . . . . 1 . Wheel 3 | 2 . . . . . 1 . Hover 1 | . . 1 . . . . . Flight . | . . . . . . . . Utility 31 | 3 2 2 1 8 9 . 6 Device 8 | 2 . 1 . 3 . . 2 Storage 4 | 1 1 . 1 . 1 . . Processor 5 | . 1 . . 1 1 . 2 Hackware 7 | . . 1 . . 5 . 1 Protection 7 | . . . . 4 2 . 1 Artifact . | . . . . . . . . Weapon 26 | 2 2 5 2 3 8 2 2 Energy Gun 9 | 1 . 3 1 1 2 1 . Energy Cannon 1 | . . . . . . . 1 Ballistic Gun 7 | 1 1 1 1 1 2 . . Ballistic Cannon . | . . . . . . . . Launcher 2 | . . 1 . . 1 . . Special Weapon 2 | . 1 . . . 1 . . Impact Weapon 2 | . . . . . . 1 1 Slashing Weapon 1 | . . . . 1 . . . Piercing Weapon . | . . . . . . . . Special Melee Weapon 2 | . . . . . 2 . . Unidentified Prototypes 4 | . . . 3 1 . . . Parts Lost 40 | . 1 3 . 7 10 . 19 Power 5 | . . . . . 3 . 2 Propulsion 7 | . . 1 . 1 2 . 3 Utility 16 | . . 1 . 4 3 . 8 Weapon 12 | . 1 1 . 2 2 . 6 Highest Loss Streak 12 | . 1 3 . 2 6 . 12 To Critical Strikes . | . . . . . . . . Average Backups 13 | 5 9 9 10 13 14 14 14 Power 1 | . 1 1 2 2 . 1 . Propulsion 1 | 3 2 1 2 2 1 1 2 Utility 5 | . 3 2 2 5 6 7 8 Weapon 3 | . 1 3 4 4 4 2 . Tool/Special . | . . . . . . . . Unused Backups 24 | . 5 2 2 7 1 . 7 Power 2 | . 1 . 1 . . . . Propulsion 7 | . 2 1 . 4 . . . Utility 10 | . 1 . . 3 . . 6 Weapon 4 | . 1 1 1 . . . 1 Tool/Special 1 | . . . . . 1 . . Average Slot Usage (%) 96 | . 90 97 100 99 98 98 69 Engine 9 | . 14 4 8 11 11 7 . Core 2 | . . 6 2 . 5 7 . Treads 15 | . . 15 22 22 17 12 1 Wheel 2 | . 18 3 . . . 1 6 Device 6 | . 9 9 11 9 4 . 1 Storage 10 | . 14 11 11 11 9 7 7 Processor 11 | . 4 11 11 12 11 15 12 Hackware 7 | . . 10 11 2 10 15 11 Protection 5 | . . . . 8 9 . . Energy Gun 8 | . 8 9 10 7 6 14 1 Ballistic Gun 7 | . 16 8 9 5 5 5 4 Special Weapon 1 | . 3 . 2 2 . . . Slashing Weapon 2 | . . . . 5 1 3 . Special Melee Weapon 1 | . . . . . 3 3 . Peak Build Rating 40 | 9 10 19 22 22 28 39 40 Average Rating 22 | 6 8 16 20 19 26 36 31 On Entrance 18 | . 9 8 19 22 21 26 39 Avg Prop Armor Cover (%) 9 | . 8 9 . . . . 9 Naked Turns 3 | . . . . . . . 3 Heaviest Build 60 | 15 20 24 35 44 60 45 49 Greatest Support 48 | 20 20 43 43 43 43 48 48 Greatest Overweight (x) 6 | 2 6 2 . 1 1 1 2 Average Overweight (x) . | . . . . . . . . Largest Inventory Capacity 15 | 8 10 10 15 15 15 15 15 Average Capacity 13 | 7 9 10 13 15 15 15 14 Most Carried 15 | 8 10 10 13 15 15 15 15 Average Carried 13 | 5 9 9 10 14 14 14 14 Final Capacity 15 | 8 10 10 15 15 15 15 5 Final Carried 15 | 8 10 10 13 15 15 15 5 Class Distribution -------------------- 72% | Mutant 9% | Bothacker-Mutant 7% | Scavenger-Mutant 6% | Skirmisher 3% | Scavenger-Skirmisher Dominant Class ---------------- Mutant | -10/Materials Mutant | -9/Materials Mutant | -9/Storage Mutant | -9/Garrison Mutant | -8/Materials Skirmisher | -7/Factory Mutant | -7/Garrison Resources | -11 -10 -9 -9 -9 -8 -7 -7 ----------- Run | Yrd Mat Mat Sto Gar Mat Fac Gar Matter Collected 2403 | 280 252 264 60 768 545 121 113 Remotely . | . . . . . . . . Salvage Created 3240 | 120 378 334 60 979 1056 39 274 Parts 178 | 3 23 28 5 62 51 . 6 Haulers Intercepted 1 | . . . . . 1 . . Recyclers Shooed 3 | . . . 1 . 2 . . Parts Field Recycled . | . . . . . . . . Retrieved Matter . | . . . . . . . . Parts Self-Destructed . | . . . . . . . . Prevented . | . . . . . . . . Parts Restored . | . . . . . . . . Kills | -11 -10 -9 -9 -9 -8 -7 -7 ------- Run | Yrd Mat Mat Sto Gar Mat Fac Gar Combat Hostiles Destroyed 80 | . 10 14 1 27 22 1 5 Melee 5 | . . . . . 2 . 3 Guns 41 | . 9 4 1 17 9 1 . Cannons 1 | . . . . 1 . . . AOE 31 | . 1 10 . 9 11 . . Classes Destroyed 15 | 2 3 2 . 3 4 1 . Builder 1 | . . . . . 1 . . Tunneler 2 | 1 1 . . . . . . Hauler 1 | . . . . . 1 . . Recycler 2 | 1 . . . . 1 . . Operator 3 | . 1 . . . 2 . . Watcher 3 | . . 1 . . 2 . . Swarmer 13 | . 3 7 . . 3 . . Grunt 40 | . 7 5 . 18 10 . . Brawler 6 | . . . . 2 1 . 3 Duelist 5 | . . . . 1 3 . 1 Protector 1 | . . . . . 1 . . Sentry 11 | . . 2 1 4 3 . 1 Specialist 2 | . . . . 2 . . . Hunter 1 | . . . . . 1 . . Programmer 1 | . . . . . . 1 . Best Kill Streak 9 | 1 3 9 1 6 7 1 3 Combat Bots Only 8 | . 3 8 1 6 5 1 3 Max Kills in Single Turn 3 | 1 1 3 1 2 2 1 1 Gunslinging . | . . . . . . . . Exploded 3 | . 1 3 . 2 2 . . Melee 1 | . . . . . 1 . 1 Uniques/NPCs Destroyed . | . . . . . . . . Combat | -11 -10 -9 -9 -9 -8 -7 -7 -------- Run | Yrd Mat Mat Sto Gar Mat Fac Gar Hostile Shots Fired 625 | . 32 30 . 150 138 8 267 Missed 173 | . 8 7 . 44 34 1 79 Hits 452 | . 24 23 . 106 104 7 188 Melee 26 | . . . . 6 7 . 13 Projectile 426 | . 24 23 . 100 97 7 175 Critical Strikes 18 | . . . . 2 8 . 8 Part Disruptions 1 | . . . . . . . 1 Damage Taken 6766 | . 329 453 . 1532 1943 100 2409 Core 1294 | . 121 77 . 204 190 15 687 Absorbed by Shields . | . . . . . . . . Redirected to Shielding 17 | . . . . 17 . . . Regen/Repaired (Parts) 57 | . . 18 39 . . . . Core Remaining (%) 61 | 100 51 . . 29 65 . . Volleys Fired 192 | 7 37 17 3 73 43 2 10 Largest 4 | 1 2 2 2 2 2 3 4 Hottest 248 | 40 120 98 100 123 103 183 248 Shots Fired 348 | 7 66 27 5 131 80 6 26 Gun 285 | 7 57 19 4 106 73 6 13 Cannon 11 | . . . . . . . 11 Launcher 24 | . . 8 . 7 7 . 2 Special 28 | . 9 . 1 18 . . . Kinetic 170 | . 40 5 2 83 31 2 7 Thermal 86 | . 9 5 1 29 21 4 17 Explosive 24 | . . 8 . 7 7 . 2 Electromagnetic 68 | 7 17 9 2 12 21 . . Robot Hit Streak 18 | 2 14 9 8 18 11 7 9 Robot Miss Streak 4 | 2 2 4 . 3 2 2 2 Penetration Max . | . . . . . . . . Secondary Targets 4 | . . . . 1 3 . . Max Gunslinging Chain 1 | . . . . 1 1 . . Shots Hit Robots 271 | 4 38 20 4 87 81 9 28 Core Hits 171 | 2 20 29 3 47 55 3 12 Critical Kills 1 | . . . . . . . 1 Critical Parts Destroyed 3 | . . . . . . . 3 Critical Strikes 8 | . . . . 2 2 . 4 Burn 3 | . . . . 2 1 . . Smash 4 | . . . . . . . 4 Sever 1 | . . . . . 1 . . Melee Attacks 51 | . . . . 3 31 4 13 Impact 13 | . . . . . . . 13 Slashing 14 | . . . . 3 11 . . Piercing . | . . . . . . . . Sneak Attacks 14 | . . . . . 11 3 . Combat Hostiles 1 | . . . . . 1 . . Follow-up Attacks . | . . . . . . . . Damage Inflicted 7042 | 58 754 890 70 2162 2066 165 877 Guns 3362 | 58 521 208 70 1164 960 165 216 Cannons 188 | . . . . . . . 188 Explosions 2613 | . 211 682 . 821 777 . 122 Melee 691 | . . . . 33 312 . 346 Ramming 44 | . 22 . . . 17 . 5 Kinetic 1725 | . 351 46 29 895 297 33 74 Thermal 1772 | . 211 136 . 385 578 132 330 Explosive 2025 | . . 605 . 695 603 . 122 Electromagnetic 785 | 58 170 103 41 154 259 . . Impact 346 | . . . . . . . 346 Slashing 345 | . . . . 33 312 . . Piercing . | . . . . . . . . Highest Corruption 26 | . 2 . . 7 8 . 26 Average Corruption 6 | . 1 . . 6 7 . 10 Corruption Purged . | . . . . . . . . Corruption Blocked . | . . . . . . . . Effects 102 | . 3 . . 67 17 . 15 Message Errors 30 | . 2 . . 18 5 . 5 Matter Fused 18 | . 1 . . 11 5 . 1 Heat Flow Errors 10 | . . . . 7 2 . 1 Energy Discharges 14 | . . . . 13 . . 1 Parts Rejected 2 | . . . . 1 . . 1 Data Loss (minor) 13 | . . . . 10 1 . 2 Data Loss (major) 5 | . . . . 4 1 . . Misfires 7 | . . . . 3 2 . 2 Alerts 1 | . . . . . 1 . . Misdirections 2 | . . . . . . . 2 Overload Shots . | . . . . . . . . Overflow Damage 160 | . 14 7 . . 7 . 132 Projectiles . | . . . . . . . . Explosions 28 | . 14 7 . . 7 . . Melee 132 | . . . . . . . 132 Knockbacks 1 | . . . . . . . 1 Impact 1 | . . . . . . . 1 Kinetic . | . . . . . . . . Secondary . | . . . . . . . . Self-Inflicted Damage 764 | . 42 206 . 136 330 . 50 Shots 20 | . 1 5 . 5 7 . 2 Rammed 9 | . 7 . . . 1 . 1 Targets Rammed 9 | . 7 . . . 1 . 1 Kicked . | . . . . . . . . Crushed . | . . . . . . . . Highest Temperature 342 | . 40 102 16 253 267 219 342 Average Temperature 66 | . 16 31 10 48 94 109 128 Received Heat Transfer 1956 | . 150 66 . 552 657 . 531 Effects 1 | . . . . . . . 1 Damage (minor) 1 | . . . . . . . 1 Siege Activations . | . . . . . . . . Martial Activations . | . . . . . . . . Shielding Activations . | . . . . . . . . Robots Disrupted . | . . . . . . . . Combat Hostiles . | . . . . . . . . Robots Corrupted 2 | . . . . . . . 2 Combat Hostiles 2 | . . . . . . . 2 Parts Fried 1 | . . . . . . . 1 Impact Corruptions 3 | . . . . . . . 3 Robots Melted . | . . . . . . . . Combat Hostiles . | . . . . . . . . Parts Melted 2 | . . . . . 1 1 . Heat Transferred 3357 | . 250 170 . 907 1196 250 584 Parts Sabotaged . | . . . . . . . . Parts Stolen . | . . . . . . . . Parts Stripped . | . . . . . . . . Power Chain Reactions 9 | . 4 1 . 2 2 . . Alert | -11 -10 -9 -9 -9 -8 -7 -7 ------- Run | Yrd Mat Mat Sto Gar Mat Fac Gar Maximum Alert Level 4 | . . 1 . 4 3 1 . Low Security (%) 36 | 100 100 71 100 7 . 65 100 Level 1 8 | . . 28 . 5 . 34 . Level 2 28 | . . . . 25 76 . . Level 3 20 | . . . . 42 23 . . Level 4 6 | . . . . 19 . . . Level 5 . | . . . . . . . . High Security . | . . . . . . . . Max Security . | . . . . . . . . Peak Influence 1473 | 5 140 257 84 1473 770 350 75 Initial 717 | . . 5 84 27 717 350 . Average 479 | . 52 121 60 823 638 151 41 Influence Increases 3409 | 10 342 439 89 1536 800 30 163 Destroy 0b10 Robot/C 1620 | . 200 280 20 560 440 20 100 Destroy 0b10 Robot/NC 80 | 10 10 5 . 5 50 . . Destroy Leader 290 | . 50 82 10 20 118 10 . Allied During Kill 3 | . . . . 2 1 . . Successful Hack 42 | . 5 . 29 . 8 . . Disable Machine 165 | . 30 15 15 60 45 . . Anti-Garrison Action 850 | . . . . 800 . . 50 Destroy Structure 209 | . 17 57 . 44 78 . 13 Lose Combat Pursuer 150 | . 30 . 15 45 60 . . Influence Decreases 3409 | 10 329 251 247 106 1503 800 163 Entered New Map 1317 | . . 8 117 16 756 420 . Time Decay 1669 | 10 329 213 130 . 607 380 . Lost Part 363 | . . 30 . 70 100 . 163 Lost Ally 60 | . . . . 20 40 . . Squads Dispatched 10 | . 3 3 . . 3 1 . Investigation 1 | . . 1 . . . . . Extermination 1 | . . . . . . 1 . Reinforcement 7 | . 3 2 . . 2 . . Assault 1 | . . . . . 1 . . Garrison . | . . . . . . . . Intercept . | . . . . . . . . Searches Triggered . | . . . . . . . . Construction Impeded . | . . . . . . . . Haulers Reinforced . | . . . . . . . . Active Scanning Responses . | . . . . . . . . Cargo Convoy Interrupts . | . . . . . . . . Stealth | -11 -10 -9 -9 -9 -8 -7 -7 --------- Run | Yrd Mat Mat Sto Gar Mat Fac Gar Distress Signals 10 | . 2 1 2 . 5 . . Communications Jammed . | . . . . . . . . Distress Signals . | . . . . . . . . Times Spotted 139 | . 27 17 4 29 48 1 13 Peak Tracking Total 8 | . 5 5 3 8 6 1 8 Tactical Retreats 9 | . 2 . 1 2 4 . . Traps | -11 -10 -9 -9 -9 -8 -7 -7 ------- Run | Yrd Mat Mat Sto Gar Mat Fac Gar Traps Triggered 17 | . 8 1 1 5 . 1 1 Indirectly . | . . . . . . . . Trap Hack Attempts . | . . . . . . . . Triggered . | . . . . . . . . Disarmed . | . . . . . . . . Reprogrammed . | . . . . . . . . Reused . | . . . . . . . . Traps Extracted . | . . . . . . . . Installed 4 | . . . . 4 . . . Triggered . | . . . . . . . . Most Traps Carried 3 | . . . . 3 . . . Machines | -11 -10 -9 -9 -9 -8 -7 -7 ---------- Run | Yrd Mat Mat Sto Gar Mat Fac Gar Machines Disabled 17 | . 3 1 1 8 3 . 1 Max in Single Turn 1 | . 1 1 1 1 1 . 1 Garrison Access 1 | . . . . . . 1 . Garrison Relay 5 | . . . . 4 . . 1 Machines Repaired . | . . . . . . . . Machines Dismantled . | . . . . . . . . Machines Sabotaged . | . . . . . . . . Overloaded Fab Kills . | . . . . . . . . Hacking | -11 -10 -9 -9 -9 -8 -7 -7 --------- Run | Yrd Mat Mat Sto Gar Mat Fac Gar Machines Accessed 20 | . 3 4 3 2 5 3 . Terminals 12 | . 3 2 1 2 4 . . Fabricators 1 | . . . . . . 1 . Repair Stations 2 | . . 1 1 . . . . Recycling Units . | . . . . . . . . Scanalyzers 2 | . . 1 . . 1 . . Garrison Access 3 | . . . 1 . . 2 . Total Hacks 36 | . 4 10 6 3 9 4 . Successful 25 | . 4 7 6 . 5 3 . Failed 10 | . . 2 . 3 4 1 . Catastrophic 2 | . . 1 . 1 . . . Database Lockouts 1 | . . 1 . . . . . Manual 2 | . . 1 . . 1 . . Terminals 20 | . 4 4 2 3 7 . . Fabricators 2 | . . . . . . 2 . Repair Stations 4 | . . 2 2 . . . . Recycling Units . | . . . . . . . . Scanalyzers 6 | . . 4 . . 2 . . Garrison Access 4 | . . . 2 . . 2 . Terminal Hacks 12 | . 4 2 2 . 4 . . Record 2 | . 1 . 1 . . . . Robot Analysis 1 | . 1 . . . . . . Alert Level 3 | . 1 1 . . 1 . . Locate Traps 1 | . . . . . 1 . . Dispatch Records 1 | . . . . . 1 . . Transport Status 1 | . . . . . 1 . . Registered Components 1 | . . . 1 . . . . Zone Layout 2 | . 1 1 . . . . . Fabricator Hacks 1 | . . . . . . 1 . Load Schematic 1 | . . . . . . 1 . Repair Station Hacks 4 | . . 2 2 . . . . Scan Component 2 | . . 1 1 . . . . Repair 2 | . . 1 1 . . . . Recycling Unit Hacks . | . . . . . . . . Scanalyzer 4 | . . 3 . . 1 . . Insert Component 2 | . . 1 . . 1 . . Analyze 1 | . . 1 . . . . . Retrieve Study 1 | . . 1 . . . . . Garrison Access Hacks 4 | . . . 2 . . 2 . Unlock Access 2 | . . . 1 . . 1 . Seal Access 1 | . . . . . . 1 . Coupler Status 1 | . . . 1 . . . . Unauthorized Hacks . | . . . . . . . . Terminals . | . . . . . . . . Fabricators . | . . . . . . . . Repair Stations . | . . . . . . . . Recycling Units . | . . . . . . . . Scanalyzers . | . . . . . . . . Garrison Access . | . . . . . . . . Data Cores Recovered 1 | . . . . . 1 . . Used . | . . . . . . . . Hacking Detections 13 | . 2 2 2 2 4 1 . Full Trace Events . | . . . . . . . . Feedback Events . | . . . . . . . . Feedback Blocked . | . . . . . . . . Robot Schematics Acquired . | . . . . . . . . Robots Built . | . . . . . . . . Authchips . | . . . . . . . . Time . | . . . . . . . . Total Robot Build Rating . | . . . . . . . . Part Schematics Acquired 1 | . . 1 . . . . . Parts Built . | . . . . . . . . Authchips . | . . . . . . . . Time . | . . . . . . . . Total Part Build Rating . | . . . . . . . . Part Studies Acquired . | . . . . . . . . Parts Repaired 2 | . . 1 1 . . . . Time 58 | . . 26 32 . . . . Parts Recycled . | . . . . . . . . Recycled Matter . | . . . . . . . . Retrieved Matter . | . . . . . . . . Retrieved Components . | . . . . . . . . Parts Scanalyzed 1 | . . 1 . . . . . Part Schematics Acquired 1 | . . 1 . . . . . Parts Damaged . | . . . . . . . . Bothacking | -11 -10 -9 -9 -9 -8 -7 -7 ------------ Run | Yrd Mat Mat Sto Gar Mat Fac Gar Used RIF Installer 2 | . . . . 1 . . 1 Coupler Efficiency 1 | . . . . . . . 1 Robots Hacked 11 | . . . . . 9 2 . Non-combat 8 | . . . . . 6 2 . Combat 3 | . . . . . 3 . . Robot Hacks Applied 15 | . . . . . 12 3 . no_distress 2 | . . . . . 1 1 . generate_echo 1 | . . . . . 1 . . find_chute 1 | . . . . . . 1 . ignore_repairs 1 | . . . . . 1 . . map_walls 1 | . . . . . . 1 . map_earth 1 | . . . . . 1 . . locate_stockpiles 1 | . . . . . 1 . . link_fov 1 | . . . . . 1 . . wipe_record 1 | . . . . . 1 . . go_dormant 1 | . . . . . 1 . . streamctrl_low 2 | . . . . . 2 . . formatsys_high 2 | . . . . . 2 . . Relay Couplers Released 21 | . . . . 18 . . 3 Machine Destruction 21 | . . . . 18 . . 3 Attached 4 | . . . . . 4 . . Fabnet Peak Effective % . | . . . . . . . . Robots Rewired . | . . . . . . . . Allies Hacked . | . . . . . . . . Hacks Repelled . | . . . . . . . . Allies | -11 -10 -9 -9 -9 -8 -7 -7 -------- Run | Yrd Mat Mat Sto Gar Mat Fac Gar Total Allies 4 | . . . . 1 3 . . Largest Group 2 | . . . . 1 2 . . Highest-Rated Group 31 | . . . . 31 27 . . Highest-Rated Ally 31 | . . . . 31 16 . . Total Orders 3 | . . . . . 3 . . FOLLOW 1 | . . . . . 1 . . AID 1 | . . . . . 1 . . DROP 1 | . . . . . 1 . . Ally Attacks 28 | . . . . 2 26 . . Total Damage 356 | . . . . 43 313 . . Kills 4 | . . . . 1 3 . . Allies Corrupted . | . . . . . . . . Allies Melted . | . . . . . . . . Intel | -11 -10 -9 -9 -9 -8 -7 -7 ------- Run | Yrd Mat Mat Sto Gar Mat Fac Gar Active Infowar (turns) 3180 | 47 571 537 269 66 534 921 235 Optics 1677 | . . . . . 534 921 222 Sensors 226 | . . 226 . . . . . Terrain 1261 | 44 571 311 269 66 . . . Seismic 16 | 3 . . . . . . 13 Robot Analysis Total 1 | . 1 . . . . . . Derelict Logs Recovered . | . . . . . . . . Drone Launches . | . . . . . . . . Drone Recoveries . | . . . . . . . . Exploration | -11 -10 -9 -9 -9 -8 -7 -7 ------------- Run | Yrd Mat Mat Sto Gar Mat Fac Gar Turns Passed 7705 | 116 861 606 269 2604 1971 921 357 Spaces Moved 3841 | 102 670 329 121 1125 815 469 210 Core 7 | 3 3 . . . . . 1 Treads 2587 | . . 198 121 1125 815 317 11 Legs 3 | . 3 . . . . . . Wheels 1244 | 99 664 131 . . . 152 198 Hover . | . . . . . . . . Flight . | . . . . . . . . Fastest Speed 50 | 50 80 95 160 160 165 115 50 Average Speed 163 | 80 91 138 160 201 202 166 120 Slowest Speed 350 | 150 350 160 160 240 245 245 330 Overloaded Moves . | . . . . . . . . Propulsion Burnouts . | . . . . . . . . Robots Hopped . | . . . . . . . . Potential Cave-ins . | . . . . . . . . Cave-ins Triggered . | . . . . . . . . Exploration Rate (%) 36 | 4 75 20 17 76 63 13 25 Regions Visited 7 Branch Regions 1 Pre-discovered Areas . | . . . . . . . . Known Exits Taken 5 | . 1 1 1 . 1 1 . Unknown Exits Taken 1 | 1 . . . . . . . Scrap Searched . | . . . . . . . . Spaces Dug 6 | . 6 . . . . . . Terrain Destroyed 203 | . 17 55 . 31 97 . 3 Melee . | . . . . . . . . Projectile 7 | . 7 . . . . . . AOE 196 | . 10 55 . 31 97 . 3 Terrain Rammed . | . . . . . . . . Walls Destroyed . | . . . . . . . . Machines Disabled . | . . . . . . . . Actions | -11 -10 -9 -9 -9 -8 -7 -7 --------- Run | Yrd Mat Mat Sto Gar Mat Fac Gar Total 4793 | 124 827 456 191 1295 1032 603 265 Wait 390 | . 69 72 48 8 82 103 8 Move 3833 | 101 669 328 120 1123 814 468 210 Hop . | . . . . . . . . Pick Up 80 | 8 11 12 8 21 11 5 4 Fast Attach 40 | 7 10 2 3 3 5 4 6 Attach 37 | . 1 7 . 7 11 2 9 Detach 2 | . . . . . 1 1 . Swap 76 | 1 12 8 3 22 24 5 1 Drop 68 | . 11 10 6 21 9 9 2 Fire 192 | 7 37 17 3 73 43 2 10 Melee 51 | . . . . 3 31 4 13 Ram 9 | . 7 . . . . . 2 Kick . | . . . . . . . . Crush 1 | . . . . . 1 . . Escape Stasis 10 | . . . . 10 . . . Rewire . | . . . . . . . . Trap 4 | . . . . 4 . . . Miscellaneous . | . . . . . . . . Route ------- -11/Scrapyard -10/Materials (discovered 3 exits: *Mat / *Min x2) -9/Materials -9/Storage -9/Garrison (discovered 3 exits: *Mat x3) -8/Materials (discovered 2 exits: *Fac x2) -7/Factory -7/Garrison History --------- Turn | Location | Event 33 | -11/Scrapyard | Discovered new exit (range 14) 117 | -11/Scrapyard | Entered Materials 335 | -10/Materials | Build established: Mutant 382 | -10/Materials | Discovered new exit (range 17) 684 | -10/Materials | Discovered new exit (range 6) 690 | -10/Materials | Identified exit to Mines 927 | -10/Materials | Discovered new exit (range 13) 972 | -10/Materials | Identified exit to Materials 978 | -10/Materials | Entered another Materials area 978 | -9/Materials | Evolved 2 slots: Utility x2 1011 | -9/Materials | Repaired Wheel 1125 | -9/Materials | Central database locked down 1229 | -9/Materials | Discovered new exit (range 14) 1242 | -9/Materials | Lost 3 parts (1n1u1w) 1250 | -9/Materials | Destroyed 8 combat bots 1300 | -9/Materials | Identified exit to Storage 1584 | -9/Materials | Entered Storage 1844 | -9/Storage | Repaired Mni. Grenade Launcher 1852 | -9/Storage | Identified exit to Garrison 1853 | -9/Storage | Entered Garrison 1897 | -9/Garrison | Triggered checkpoint 1936 | -9/Garrison | Garrison Relay disabled 2058 | -9/Garrison | Rescued a captive Derelict 2085 | -9/Garrison | Triggered checkpoint 2107 | -9/Garrison | Triggered checkpoint 2177 | -9/Garrison | Triggered checkpoint 2385 | -9/Garrison | Discovered new exit (range 11) 2399 | -9/Garrison | Identified exit to Materials 2463 | -9/Garrison | Triggered checkpoint 2511 | -9/Garrison | Garrison Relay disabled 2654 | -9/Garrison | Discovered exit to Materials (range 10) 2705 | -9/Garrison | Triggered checkpoint 2797 | -9/Garrison | Triggered checkpoint 2811 | -9/Garrison | Core integrity fell below 50% 2835 | -9/Garrison | Discovered exit to Materials (range 14) 2857 | -9/Garrison | Garrison Relay disabled 2919 | -9/Garrison | Triggered checkpoint 2973 | -9/Garrison | Triggered checkpoint 3044 | -9/Garrison | Garrison Relay disabled 3861 | -9/Garrison | Installed Relay Interface Framework 4457 | -9/Garrison | Entered Materials 4457 | -8/Materials | Evolved 2 slots: Power x1, Utility x1 4857 | -8/Materials | First assault squad dispatched 5513 | -8/Materials | Build established: Bothacker-Mutant 5577 | -8/Materials | Discovered new exit (range 10) 5596 | -8/Materials | Identified exit to Factory 5932 | -8/Materials | Lost 6 parts (1p1n3u1w) 6037 | -8/Materials | Discovered exit to Factory (range 13) 6190 | -8/Materials | Build established: Mutant 6428 | -8/Materials | Entered Factory 6428 | -7/Factory | Evolved 2 slots: Weapon x2 7318 | -7/Factory | Build established: Skirmisher 7346 | -7/Factory | Allied Derelicts emerged from ambush trap array 7348 | -7/Factory | Identified exit to Garrison 7349 | -7/Factory | Entered Garrison 7373 | -7/Garrison | Triggered checkpoint 7449 | -7/Garrison | Lost 6 parts (2p2u2w) 7469 | -7/Garrison | Expanded RIF knowledge: Coupler Efficiency 7497 | -7/Garrison | Garrison Relay disabled 7639 | -7/Garrison | Triggered checkpoint 7652 | -7/Garrison | System corruption reached 10% 7694 | -7/Garrison | Core integrity fell below 50% 7703 | -7/Garrison | Released all parts (4) 7705 | -7/Garrison | Core integrity fell below 20% 7706 | -7/Garrison | Destroyed by Y-54 Guardian with Flak Gun Last Messages --------------- 07690_ Identified Seismic Detector. 07693_ Penetrated by Slug. 07693_ Critical hit (Destroy). 07693_ Imp. Light Armor Plating destroyed. 07695_ Slug penetrates Wall. 07700_ System corrupted: Component data lost. 07700_ H-55 Commando suffers critical hit (Smash). 07700_ Destroyed Carbon-fiber Leg. 07700_ H-55 Commando system corrupted by crushing effect. 07701_ Power Maul destroyed. 07701_ Arm. Treads destroyed. 07703_ Med. Treads destroyed. 07703_ Released Seismic Detector. 07703_ Released Lrg. Storage Unit. 07703_ Released Hacking Suite. 07703_ Released Lrg. Storage Unit. 07704_ Slug penetrates Wall. 07704_ Slammed into H-55 Commando. Map ----- +----------------------------------------------------+ | ?????????????????????# ! %% %#??#! !#???? | | ?????????????????????## [ ######"#### #??#! !#???? | | ?????????????????????#"" ""#???# ## # ##### #????? | | ?????????????????????#######???# # # ##???? | | ???????????????????????????????# #### #### # ###?? | | ???????????????????????????????# #??# ## ! #?? | | ???????????????????????????????# #??# ## ! ! ##?? | | ????????????????????????######## #??# ### ! #?? | | ????????????????????????#"""" ## #### ### ##?? | | ????????????????????????#" # #??? | | ????????????????????????#"""" ## #### ### # #??? | | ????????????????????????######## #??# ### #??? | | ???????????????????????????????# #??# #########??? | | ???????????????????????????????# #??# #???# #??? | | ???????????????????????????????# #### ##### #??? | | ????????????????????????##?????# ## #??? | | ????????????????????????# ????? # #??? | | ????????????????????????#h#????#### ##########??? | | ?????????????????####???# #???????# #???????????? | | ?????????????#???# ??# #???????# #???????????? | | ????????????## ## ### ##??????# #???????????? | | ????????##### g######## #???????????? | | ????? Y g=g/ #???????????? | | ????? hp=!! #???????????? | | ???????????## ## Y%!###########???????????? | | ?????????????????# # @!#?????????????????????? | | ?????????????? #???????????????????? | | ????????????" #???????????????????? | | ????????????" ^ #???????????????????? | | ????????????" #???????????????????? | | ????????????# ##% ## ###???????????????????? | | ????????????# ?# ?# #?????????????????????? | | ??????????? ? ? ?????????????????????? | | ?????????? ? ?? ?????????????????????? | | ?????????####? ?? #?????????????????????? | | ?????????????? ##""??######?????????????????????? | | ?????????????? ?????????????????????????????????? | | ?????????????? ??????????????????????????????????? | | ?????????????????????????????????????????????????? | | ?????????????????????????????????????????????????? | | ?????????????????????????????????????????????????? | | ?????????????????????????????????????????????????? | | ?????????????????????????????????????????????????? | | ?????????????????????????????????????????????????? | | ?????????????????????????????????????????????????? | | ?????????????????????????????????????????????????? | | ?????????????????????????????????????????????????? | | ?????????????????????????????????????????????????? | | ?????????????????????????????????????????????????? | | ?????????????????????????????????????????????????? | +----------------------------------------------------+ Best States ------------- Heat Dissipation 53 Energy Generation 23 Energy Capacity 460 Matter Stores 300 Matter Capacity 300 Sight Range 18 Robot Scan Range 14 Terrain Scan Range 16 Terrain Scan Density 10 Armor Coverage 450 Core Shielding 20 Melee Speed Boost 20 Evasion (%) 44 Melee Accuracy 6 Target Analysis 5 Recoil Reduction 2 Offensive Hacking 10 Relay Coupler Types 3 Relay Coupler Value 37 Item Schematics ----------------- Wheel | -9/Materials | Scanalyzed Robot Schematics ------------------ None Fabricated ------------ Nothing Repaired ---------- Wheel | 55% | -9/Materials Mni. Grenade Launcher | 22% | -9/Storage Studied --------- None Alien Tech Used ----------------- None Achievements -------------- Assimilation Complete Join The Dark Side Maybe Next Time I'll Detach My Launcher Mindtrick Not Today, Chutes Versatile You Will Be Upgraded Challenges ------------ None Game ------ Seed GravitonSuperquantumPurifier Manual? 0 Play Time 01:46:25 Cumulative 40.7 hours Start 2026.02.23 @ 13:03:45 End 2026.02.24 @ 20:39:21 Sessions 13 Manual Loads 0 Difficulty Rogue Special Mode None Game No. 39 Rogue 39 Adventurer 0 Explorer 0 Win Type - Total 0 Types 0/0/0/0/0/0/0/0/0/0 Lore% 12 Gallery% 27 Achievement% 18 Wizard Run 0 Options --------- Layout 1 ASCII 0 Keyboard 0 Movement Mouse Keybinds 0 Fullscreen 2 Font 48/Terminus Map View 50x35 Zoom Use 0% Tactical HUD 1 Map Filters NONE Filters NONE Steam 1 RUN: 59b2bff5-8c02-440e-9779-0042175989cf